fUST/lending_fUST_20260409
["ID","MTS","AMOUNT","RATE_DAILY","PERIOD"]
[420089968,1775664081097,-300.0,0.00013026,2]
[420089969,1775664081134,-1000.0,0.00013699,2]
[420089972,1775664090752,200.0,0.00031004,120]
[420089973,1775664135631,-500.0,0.00019973,2]
[420089974,1775664135698,-3999.60041193,0.0002,15]
[420089977,1775664164866,-1800.0,0.0002,15]
[420089985,1775664270810,200.0,0.00026535,120]
[420089988,1775664391266,200.0,0.00030368,120]
[420089989,1775664394080,200.0,0.00031452,120]
[420090012,1775664510829,200.0,0.00030058,120]
[420090017,1775664570835,200.0,0.00031296,120]
[420090056,1775664625281,101.83336628,3.6e-05,10]
[420090057,1775664625312,959.89506825,3.6e-05,10]
[420090058,1775664625340,3938.27156547,3.6e-05,10]
[420090059,1775664626210,50005.10076833,7.857e-05,2]
[420090151,1775664638942,-5000.0,0.0001264,2]
[420090153,1775664638953,-4611.80131239,0.00012768,2]
[420090637,1775664644081,-388.19868761,0.00012768,2]
[420090640,1775664644092,-1000.0,0.00013699,2]
[420090642,1775664644103,-214.58927837,0.00019259,2]
[420090644,1775664644115,-4719.32942577,0.000199,2]
[420090856,1775664646639,-3111.72127698,0.000199,2]
[420090858,1775664646652,-357.725,0.000199,2]
[420090860,1775664646663,-3717.40865159,0.0002,15]
[420091705,1775664691160,200.0,0.00027726,120]
[420091763,1775665832480,-833.04085386,0.00011782,10]
[420091771,1775665832892,-4166.95914614,0.00011782,10]
[420091773,1775665832902,-238.4812646,0.00011901,10]
[420091775,1775665832913,-1205.27698185,0.00012021,10]
[420091779,1775665832925,-320.24175355,0.00012021,10]
[420091833,1775665839233,-2570.79891431,0.00012021,10]
[420091834,1775665839244,-1000.0,0.00013699,2]
[420091835,1775665839254,-615.0,0.00013699,2]
[420091836,1775665839264,-857.63507482,0.00017322,2]
[420091837,1775665839274,-359.70364875,0.00017322,2]
[420091838,1775665839284,-1438.81459501,0.00017322,2]
[420091839,1775665839294,-3234.09550594,0.00017322,2]
[420091840,1775665839304,-2241.58559738,0.00018233,2]
[420091841,1775665839316,-500.0,0.00019773,2]
[420091842,1775665839326,-500.0,0.00019799,2]
[420091843,1775665839336,-455.25059973,0.00019799,2]
[420091844,1775665839346,-500.0,0.00019799,2]
[420091845,1775665839356,-318.67541981,0.00019799,2]
[420091846,1775665839367,-276.73394629,0.00019799,2]
[420091847,1775665839377,-500.0,0.00019799,2]
[420091848,1775665839388,-500.0,0.00019799,2]
[420091849,1775665839398,-500.0,0.00019799,2]
[420091850,1775665839409,-500.0,0.00019799,2]
[420091851,1775665839419,-270.50275579,0.00019799,2]
[420091852,1775665839430,-500.0,0.00019799,2]
[420091853,1775665839440,-500.0,0.00019799,2]
[420091854,1775665839451,-501.42797774,0.00019799,2]
[420091855,1775665839461,-500.0,0.00019799,2]
[420091856,1775665839470,-500.0,0.00019799,2]
[420091857,1775665839481,-520.66541815,0.00019799,2]
[420091858,1775665839491,-500.0,0.00019799,2]
[420091859,1775665839501,-500.0,0.00019799,2]
[420091860,1775665839512,-500.0,0.00019799,2]
[420091861,1775665839522,-500.0,0.00019799,2]
[420091862,1775665839533,-500.0,0.00019799,2]
[420091863,1775665839543,-600.0,0.00019799,2]
[420091864,1775665839553,-27891.84298775,0.000198,2]
[420091865,1775665839566,-540230.87208463,0.000198,2]
[420091866,1775665839576,-200.0,0.00019898,2]
[420091867,1775665839585,-200.0,0.00019899,2]
[420091868,1775665839595,-253.24094559,0.000199,2]
[420091869,1775665839604,-603.36,0.000199,2]
[420091870,1775665839614,-603.36,0.000199,2]
[420091871,1775665839624,-603.36,0.000199,2]
[420091872,1775665839634,-603.36,0.000199,2]
[420091873,1775665839645,-603.36,0.000199,2]
[420091874,1775665839655,-603.36,0.000199,2]
[420091875,1775665839665,-603.36,0.000199,2]
[420091876,1775665839674,-603.36,0.000199,2]
[420091877,1775665839684,-737.83,0.000199,2]
[420091878,1775665839694,-2000.0,0.0002,7]
[420091879,1775665839704,-99582.12950812,0.0002,15]
[420091883,1775665841871,-5180.09590182,0.0002,15]
[420091884,1775665841883,-9321.55450902,0.0002,15]
[420091885,1775665841894,-253.24094559,0.0002,2]
[420091886,1775665841905,-2242.9137244,0.00020227,2]
[420091887,1775665841915,-1006.11332033,0.00020321,2]
[420091888,1775665841927,-600.0,0.00020399,2]
[420091889,1775665841936,-47482.80932655,0.000209,2]
[420091890,1775665841948,-5134.18173285,0.000211,2]
[420091891,1775665841957,-811.507,0.00021134,2]
[420091892,1775665841967,-195.135,0.00021134,2]
[420091893,1775665841977,-440.0,0.00021134,2]
[420091894,1775665841987,-184.0,0.00021134,2]
[420091895,1775665841997,-665.84356665,0.0002137,2]
[420091896,1775665842007,-166.62751918,0.0002137,2]
[420091897,1775665842017,-464.48931074,0.0002137,2]
[420091898,1775665842028,-1270.36625081,0.000219,2]
[420091911,1775665846825,-1365.08688612,0.000219,2]
[420091912,1775665847176,-432.61577525,0.000219,2]
[420091913,1775665847186,-500.0,0.00021973,2]
[420091914,1775665847195,-500.0,0.00021973,2]
[420091915,1775665847205,-162.02896737,0.00021973,2]
[420091916,1775665847214,-501.49712937,0.00021973,2]
[420091917,1775665847224,-500.0,0.00021973,2]
[420091918,1775665847234,-500.84602851,0.00021973,2]
[420091919,1775665847244,-501.39030646,0.00021973,2]
[420091920,1775665847254,-500.0,0.00021973,2]
[420091921,1775665847264,-500.0,0.00021973,2]
[420091922,1775665847274,-161.57766915,0.00021973,2]
[420091923,1775665847284,-500.0,0.00021973,2]
[420091924,1775665847294,-307.45898319,0.00021973,2]
[420091925,1775665847304,-501.28663804,0.00021973,2]
[420091926,1775665847314,-572.16324084,0.00021973,2]
[420091927,1775665847324,-166.99946551,0.00021973,2]
[420091928,1775665847334,-500.47552584,0.00021973,2]
[420091929,1775665847344,-501.90574335,0.00021973,2]
[420091930,1775665847354,-500.0,0.00021973,2]
[420091931,1775665847363,-158.0,0.00021973,2]
[420091932,1775665847373,-501.28091672,0.00021973,2]
[420091933,1775665847383,-500.0,0.00021973,2]
[420091934,1775665847393,-500.54179133,0.00021973,2]
[420091935,1775665847403,-501.09451831,0.00021973,2]
[420091936,1775665847412,-500.0,0.00021973,2]
[420091937,1775665847422,-501.06675928,0.00021973,2]
[420091938,1775665847431,-499.47638999,0.00021973,2]
[420091939,1775665847441,-500.0,0.00021973,2]
[420091940,1775665847451,-500.0,0.00021973,2]
[420091941,1775665847461,-500.0,0.00021973,2]
[420091942,1775665847470,-500.0,0.00021973,2]
[420091943,1775665847479,-1875.12176795,0.0002199,10]
[420091944,1775665847491,-3531.42823205,0.0002199,10]
[420091945,1775665847500,-200.0,0.00021999,2]
[420091946,1775665847510,-160.42306948,0.00021999,2]
[420091947,1775665847520,-200.0,0.00021999,2]
[420091948,1775665847530,-762.38878835,0.00022,2]
[420091955,1775665926390,1000.0,0.00013699,2]
[420092020,1775666153471,1000.0,0.00031506,120]
[420092022,1775666161929,1000.0,0.00031506,120]
[420092024,1775666170302,1000.0,0.00031506,120]
[420092026,1775666179466,1000.0,0.00031506,120]
[420092027,1775666186850,1000.0,0.00031506,120]
[420092196,1775667042914,-1000.0,0.00013699,2]
[420092197,1775667042924,-615.0,0.00013699,2]
[420092198,1775667042934,-735.5953657,0.00020825,2]
[420092199,1775667042943,-6833.4046343,0.00020829,2]
[420092337,1775667684542,-2656.11797688,0.00013426,2]
[420092343,1775667737319,30382.06423745,0.00031506,120]
[420092514,1775668231869,-1000.0,0.00013699,2]
[420092515,1775668231879,-290.06616112,0.00017435,2]
[420092516,1775668231888,-297.37571731,0.00017435,2]
[420092530,1775668238057,-704.220022,0.00017435,2]
[420092543,1775668243390,-157.50864052,0.00017435,2]
[420092544,1775668243400,-676.0,0.00017435,2]
[420092545,1775668243408,-177.0,0.00018026,2]
[420092546,1775668243417,-173.00000001,0.00020026,2]
[420092547,1775668243428,-178.16898812,0.00020335,2]
[420092548,1775668243439,-285.0,0.00020547,2]
[420092549,1775668243450,-208.541159,0.0002073,2]
[420092550,1775668243460,-3166.5953657,0.00020829,2]
[420092551,1775668243470,-151.0,0.00020829,2]
[420092552,1775668243480,-151.0,0.00020829,2]
[420092553,1775668243491,-151.0,0.00020829,2]
[420092554,1775668243501,-151.0,0.00020829,2]
[420092555,1775668243512,-151.0,0.00020829,2]
[420092556,1775668243523,-151.0,0.00020829,2]
[420092557,1775668243534,-151.0,0.00020829,2]
[420092558,1775668243544,-151.0,0.00020829,2]
[420092559,1775668243555,-151.0,0.00020829,2]
[420092560,1775668243565,-153.73445118,0.00020829,2]
[420092561,1775668243576,-389.0628006,0.00020973,2]
[420092562,1775668243587,-184.0,0.00021151,2]
[420092563,1775668243597,-440.0,0.00021151,2]
[420092564,1775668243608,-4046.0830613,0.00021239,2]
[420092566,1775668243618,-154.4258518,0.00021288,2]
[420092568,1775668243629,-5586.77,0.0002179,10]
[420092570,1775668243639,-1073.0,0.00021866,7]
[420092572,1775668243649,-5221.68213993,0.00021866,7]
[420092573,1775668243662,-13388.31786007,0.00021866,7]
[420092574,1775668243673,-500.0,0.0002188,2]
[420092575,1775668243683,-578.20924308,0.0002188,2]
[420092576,1775668243693,-5000.0,0.0002188,2]
[420092577,1775668243704,-2150.738,0.0002188,2]
[420092578,1775668243714,-537.6845,0.0002188,2]
[420092579,1775668243724,-168.82729707,0.000219,2]
[420092580,1775668243735,-264.16679955,0.00021935,2]
[420092581,1775668243746,-500.0,0.00021973,2]
[420092582,1775668243756,-500.0,0.00021973,2]
[420092583,1775668243767,-375.6971021,0.00021973,2]
[420092584,1775668243777,-181.57107777,0.00021973,2]
[420092585,1775668243787,-4655.64,0.0002199,10]
[420092586,1775668243797,-200.0,0.00021999,2]
[420092587,1775668243807,-308.48233273,0.00021999,2]
[420092588,1775668243816,-6721.50360594,0.00022,2]
[420092589,1775668243829,-136121.61933407,0.00022,2]
[420092592,1775668246520,-1000.0,0.00021,2]
[420092593,1775668246530,-1000.0,0.000215,2]
[420092594,1775668246541,-3879.7,0.0002199,10]
[420092595,1775668246551,-34678.93600879,0.00022,2]
[420092596,1775668246564,-41708.54610453,0.00022,2]
[420092597,1775668246576,-10635.02117811,0.00022,2]
[420092598,1775668246589,-761.61884548,0.00022,2]
[420092599,1775668246602,-10121.03344516,0.00022,2]
[420092603,1775668277672,13163.9056532,0.00031359,120]
[420092604,1775668303161,17498.44619345,7.6e-05,2]
[420092605,1775668303243,17498.44619345,7.6e-05,2]
[420092642,1775668578972,7898.34339192,0.0003139,120]
[420092643,1775668603088,17498.44619345,7.6e-05,2]
[420092644,1775668603143,34996.8923869,7.6e-05,2]
[420092674,1775668857918,-300.0,0.00032,120]
[420092675,1775668878548,4739.00603515,0.00031409,120]
[420092678,1775668903105,17498.44619345,7.6e-05,2]
[420092679,1775668903185,17498.44619345,7.6e-05,2]
[420092684,1775669178914,2843.40362109,0.00031394,120]
[420093336,1775669438435,-1000.0,0.00013699,2]
[420093337,1775669438445,-1153.2859676,0.0002027,2]
[420093338,1775669438454,-247.495881,0.0002027,2]
[420093340,1775669438464,-28784.69017334,0.000215,2]
[420093342,1775669438476,-2214.0,0.000215,2]
[420093344,1775669438487,-2000.38884425,0.000215,2]
[420093346,1775669438497,-31013.93805091,0.000215,2]
[420093588,1775669440854,-12731.74240488,0.000215,2]
[420093590,1775669440864,-300.0,0.00021589,2]
[420093592,1775669440873,-1871.0,0.0002159,10]
[420093594,1775669440883,-2921.25,0.0002159,10]
[420093596,1775669440892,-2434.38,0.0002159,10]
[420093598,1775669440902,-257.14850814,0.00021599,2]
[420093600,1775669440911,-293.54186958,0.00021599,2]
[420093602,1775669440921,-500.0,0.00021599,2]
[420093604,1775669440930,-500.0,0.00021599,2]
[420093606,1775669440940,-500.0,0.00021599,2]
[420093608,1775669440950,-500.0,0.00021599,2]
[420093610,1775669440960,-433.10902734,0.00021599,2]
[420094445,1775669450330,-66.89097266,0.00021599,2]
[420094447,1775669450340,-500.0,0.00021599,2]
[420094449,1775669450350,-500.0,0.00021599,2]
[420094451,1775669450359,-500.0,0.00021599,2]
[420094453,1775669450369,-500.0,0.00021599,2]
[420094454,1775669450379,-500.0,0.00021599,2]
[420094455,1775669450389,-204.67735951,0.00021599,2]
[420094456,1775669450398,-471.71302877,0.00021599,2]
[420094457,1775669450408,-500.0,0.00021599,2]
[420094458,1775669450418,-500.0,0.00021599,2]
[420094459,1775669450428,-500.0,0.00021599,2]
[420094461,1775669450438,-3064.1099054,0.000216,2]
[420094467,1775669450487,-1357.39668019,0.000216,2]
[420094469,1775669450503,-8008.41106366,0.000216,2]
[420096464,1775669478465,1706.04217266,0.00031381,120]
[420096465,1775669481258,-1000.0,0.00013699,2]
[420096466,1775669481287,-151.0,0.00014795,2]
[420096482,1775669778440,639.76581474,0.00031364,120]
[420096524,1775670078603,479.82436106,0.00031346,120]
[420096526,1775670235260,3000.0,0.00031507,120]
[420096672,1775670642096,-452.20984168,0.00013599,2]
[420096673,1775670642106,-347.79015832,0.00013649,2]
[420096719,1775670642665,-310.35409388,0.00013649,2]
[420096722,1775670642677,-817.68320853,0.00013649,2]
[420096724,1775670642687,-1000.0,0.00013699,2]
[420096725,1775670642697,-1653.439072,0.00014175,2]
[420096727,1775670642706,-306.80409014,0.00015649,2]
[420096852,1775670646510,-1434.67231352,0.00015649,2]
[420096853,1775670646519,-3346.49917761,0.00016215,2]
[420096870,1775670678458,215.92096248,0.00031204,120]
[420096871,1775670978317,183.5328181,0.00031296,120]
[420096874,1775671278500,156.00289539,0.00031204,120]
[420096875,1775671532005,1780.0,0.00031507,120]
[420096876,1775671611979,370.6,0.00031087,120]
[420096877,1775671617397,2709.18,0.00031087,120]
[420096880,1775671807898,73181.98819748,7.6e-05,2]
[420096894,1775671832575,-255.0,9.999e-05,2]
[420096895,1775671832585,-67.52736127,9.999e-05,2]
[420096997,1775671846867,-232.47263873,9.999e-05,2]
[420096998,1775671846877,-300.0,9.999e-05,2]
[420096999,1775671846887,-1407.84297751,0.0001,2]
[420097000,1775671846897,-2906.48866015,0.0001,2]
[420097001,1775671846907,-291.55562151,0.0001,2]
[420097002,1775671846917,-1000.0,0.00013699,2]
[420097003,1775671846927,-600.51027201,0.000149,2]
[420097004,1775671846937,-1028.44952996,0.00015,2]
[420097005,1775671846946,-3055.849822,0.00015,2]
[420097006,1775671846955,-152.34415343,0.00015,2]
[420097007,1775671846965,-854.31656658,0.000158,2]
[420097008,1775671846975,-166.66666666,0.00015825,2]
[420097009,1775671846984,-217.96779442,0.00016,2]
[420097010,1775671846994,-1501.28561998,0.00016108,2]
[420097011,1775671847004,-725.55802675,0.00016108,2]
[420097012,1775671847014,-216.20955019,0.00016215,2]
[420097013,1775671847024,-2159.57065015,0.000176,2]
[420097014,1775671847034,-2007.1253466,0.00017649,2]
[420097015,1775671847044,-509.29965462,0.00018,2]
[420097016,1775671847054,-208.54116,0.00019125,2]
[420097017,1775671847064,-23995.28467278,0.00019223,2]
[420097018,1775671848131,10000.0,0.00031507,120]
[420097019,1775671864813,10000.0,0.00031507,120]
[420097020,1775671879376,10000.0,0.00031507,120]
[420097021,1775671894895,10000.0,0.00031507,120]
[420097022,1775671913367,8673.0,0.00031507,120]
[420097025,1775672636859,2042.53521473,0.0001369,120]
[420097160,1775673032615,-284.41047151,0.00013562,2]
[420097162,1775673032627,-649.7334173,0.00013562,2]
[420097234,1775673046898,-5000.0,0.00013426,2]
[420097235,1775673046908,-1000.0,0.00013699,2]
[420097236,1775673046917,-335.8425508,0.00016321,2]
[420097237,1775673046926,-2242.9137244,0.00017642,2]
[420097238,1775673046937,-300.0,0.00019222,2]
[420097239,1775673046946,-3341.83386919,0.00019223,2]
[420097240,1775673046958,-7831.09880911,0.00019223,2]
[420097241,1775673046970,-14327.76689602,0.00019223,2]
[420097242,1775673046980,-884.01640721,0.00019327,2]
[420097243,1775673046990,-545.48233327,0.00019493,2]
[420097244,1775673047000,-2272.77428953,0.00019649,2]
[420097245,1775673047010,-690.73945363,0.00019685,2]
[420097247,1775673080813,-799.60041193,0.00014033,2]
[420097248,1775673080859,-3608.46365819,0.00014033,2]
[420097251,1775673110321,-207.66448205,0.00014033,2]
[420097252,1775673110346,-384.27144783,0.00014033,2]
[420097253,1775673139452,-207.66448205,0.00014033,2]
[420097340,1775674239167,-558.87689505,0.00013027,2]
[420097353,1775674241781,-4441.12310495,0.00013027,2]
[420097354,1775674241792,-1577.23169195,0.00013426,2]
[420097355,1775674241801,-156.0,0.00013699,2]
[420097356,1775674241811,-1000.0,0.00013699,2]
[420097357,1775674241821,-1620.66209332,0.00014175,2]
[420097358,1775674241831,-1064.84980894,0.00014175,2]
[420097359,1775674241841,-1055.2828068,0.00014175,2]
[420097360,1775674241851,-599.58312867,0.00014175,2]
[420097361,1775674241862,-2000.0,0.00016342,2]
[420097362,1775674241872,-515.03760211,0.00016713,2]
[420097363,1775674241882,-2060.15040845,0.00016713,2]
[420097364,1775674241892,-4630.70308058,0.00016713,2]
[420097365,1775674241902,-7831.0988091,0.0001688,2]
[420097366,1775674241912,-151.0,0.00016881,2]
[420097367,1775674241921,-1538.2811266,0.00017145,2]
[420097368,1775674241931,-2605.58680572,0.00017373,2]
[420097369,1775674241941,-159.858172,0.00017473,2]
[420097370,1775674241951,-151.238552,0.00017593,2]
[420097371,1775674241961,-151.0,0.00017762,2]
[420097372,1775674241970,-1531.08334026,0.00017762,2]
[420097390,1775674243015,-2935.06876664,0.00017762,2]
[420097391,1775674243025,-179.9494428,0.00017838,2]
[420097393,1775674243037,-464.57030376,0.00018261,2]
[420097395,1775674243048,-167.42128485,0.00018518,2]
[420097396,1775674243058,-669.01545426,0.00018518,2]
[420097397,1775674243069,-197.83685929,0.0001911,2]
[420097398,1775674243079,-2605.5868057,0.00019163,2]
[420097399,1775674243090,-555.043227,0.00019169,2]
[420097400,1775674243100,-303.10685168,0.00019222,2]
[420097401,1775674243110,-450.2552908,0.00019222,2]
[420097402,1775674243119,-1538.2811266,0.00019296,2]
[420097403,1775674243129,-151.0,0.00019493,2]
[420097404,1775674243139,-1799.22014203,0.00019576,2]
[420097405,1775674243150,-1211.21497931,0.00019576,2]
[420097406,1775674243160,-151.521604,0.00019726,2]
[420097407,1775674243170,-236.66666667,0.000199,2]
[420097408,1775674243180,-211.02957183,0.000199,2]
[420097409,1775674243190,-555.043227,0.00019976,2]
[420097410,1775674243200,-7202.43485908,0.0002,15]
[420097432,1775674245993,-1000.0,0.00019726,2]
[420097433,1775674246003,-725.06746381,0.00019726,2]
[420097434,1775674246014,-2119.11964994,0.0002,15]
[420097435,1775674246024,-161.46176849,0.0002,2]
[420097436,1775674246034,-17835.0,0.00020181,7]
[420097437,1775674246044,-1135.0,0.00020181,7]
[420097438,1775674246054,-4534.0236313,0.00020309,2]
[420097439,1775674246064,-500.0,0.00020736,2]
[420097440,1775674246074,-500.0,0.00020736,2]
[420097441,1775674246083,-500.0,0.00020736,2]
[420097442,1775674246093,-500.0,0.00020736,2]
[420097443,1775674246103,-553.71955227,0.00020736,2]
[420097444,1775674246113,-555.043227,0.00020783,2]
[420097445,1775674246122,-303.10151341,0.00020899,2]
[420097446,1775674246132,-151.0,0.00020899,2]
[420097447,1775674246142,-445.202766,0.00020899,2]
[420097448,1775674246151,-162.380719,0.00020899,2]
[420097449,1775674246161,-151.0,0.00020899,2]
[420097450,1775674246171,-500.0,0.00020899,2]
[420097451,1775674246181,-537.6845,0.00020899,2]
[420097452,1775674246191,-537.6845,0.00020899,2]
[420097453,1775674246200,-2150.738,0.00020899,2]
[420097454,1775674246211,-305.0,0.000209,2]
[420097455,1775674246221,-256.0,0.000209,2]
[420097456,1775674246231,-201.0,0.000209,2]
[420097457,1775674246241,-407.0,0.000209,2]
[420097458,1775674246251,-154.0,0.000209,2]
[420097459,1775674246261,-211.02957181,0.000209,2]
[420097461,1775674246271,-2605.5868057,0.00020952,2]
[420097463,1775674246281,-557.5788265,0.00020954,2]
[420097465,1775674246291,-2028.65,0.0002099,10]
[420097467,1775674246301,-3000.0,0.00021,2]
[420097469,1775674246309,-5400.0,0.00021,2]
[420097471,1775674246319,-578.20924308,0.00021009,2]
[420097473,1775674246330,-500.0,0.0002101,2]
[420097475,1775674246339,-3000.0,0.0002101,2]
[420097477,1775674246349,-3000.0,0.0002102,2]
[420097479,1775674246360,-3000.0,0.0002103,2]
[420097481,1775674246370,-3000.0,0.0002104,2]
[420097483,1775674246379,-3000.0,0.0002105,2]
[420097485,1775674246389,-3000.0,0.0002106,2]
[420097487,1775674246399,-599.60298507,0.00021064,2]
[420097489,1775674246409,-3000.0,0.0002107,2]
[420097491,1775674246419,-3000.0,0.0002108,2]
[420097493,1775674246429,-3000.0,0.0002109,2]
[420097495,1775674246438,-200.0,0.0002109,2]
[420097497,1775674246447,-167.78,0.0002109,3]
[420097499,1775674246457,-3000.0,0.000211,2]
[420097501,1775674246467,-5134.18173285,0.000211,2]
[420097503,1775674246476,-3000.0,0.0002111,2]
[420097505,1775674246485,-621.78829552,0.00021119,2]
[420097507,1775674246495,-3000.0,0.0002112,2]
[420097509,1775674246504,-503.38,0.0002112,3]
[420097511,1775674246513,-4877.462059,0.0002113,2]
[420097513,1775674246522,-644.79446246,0.00021174,2]
[420097514,1775674246531,-668.65185757,0.00021229,2]
[420097515,1775674246544,-500.0,0.00021284,2]
[420097516,1775674246553,-693.3919763,0.00021284,2]
[420097517,1775674246563,-719.04747942,0.00021339,2]
[420097518,1775674246572,-745.65223616,0.00021394,2]
[420097519,1775674246582,-500.0,0.00021399,2]
[420097520,1775674246592,-500.0,0.00021399,2]
[420097521,1775674246601,-213.06571399,0.00021447,2]
[420097522,1775674246611,-461.67526834,0.00021447,2]
[420097523,1775674246621,-504.89995942,0.00021447,2]
[420097524,1775674246630,-557.5788265,0.00021447,2]
[420097525,1775674246640,-2230.315306,0.00021447,2]
[420097526,1775674246650,-1538.2811266,0.00021448,2]
[420097527,1775674246659,-773.2413689,0.00021449,2]
[420097528,1775674246669,-500.0,0.00021486,2]
[420097529,1775674246678,-500.0,0.00021499,2]
[420097530,1775674246688,-500.0,0.00021499,2]
[420097531,1775674246697,-500.0,0.00021499,2]
[420097532,1775674246708,-500.0,0.00021499,2]
[420097533,1775674246718,-500.0,0.00021499,2]
[420097534,1775674246728,-500.0,0.00021499,2]
[420097535,1775674246738,-267.72046635,0.00021499,2]
[420097536,1775674283693,7000.0,0.00031507,120]
[420097537,1775674881626,-1000.0,0.00013699,2]
[420097641,1775675407309,239208.1749688,7.6e-05,2]
[420097646,1775675432036,-758.80645586,0.00013562,2]
[420098093,1775675446137,-4241.19354414,0.00013562,2]
[420098094,1775675446147,-1000.0,0.00013699,2]
[420098095,1775675446156,-5799.60041193,0.0002,15]
[420098096,1775675446166,-8260.9764785,0.000207,2]
[420098097,1775675446176,-285.05305072,0.00020733,2]
[420098098,1775675446186,-500.0,0.00020833,2]
[420098099,1775675446196,-2150.738,0.00020833,2]
[420098100,1775675446207,-537.6845,0.00020833,2]
[420098101,1775675446216,-1001.825555,0.000209,2]
[420098102,1775675446227,-2067.93624149,0.0002093,2]
[420098103,1775675446237,-2206.0,0.00020954,2]
[420098104,1775675446246,-1406.0,0.00020954,2]
[420098105,1775675446256,-195.135,0.00020954,2]
[420098106,1775675446266,-185.0,0.00020954,2]
[420098107,1775675446276,-440.0,0.00020954,2]
[420098108,1775675446287,-3000.0,0.00021,2]
[420098109,1775675446297,-3000.0,0.0002101,2]
[420098110,1775675446306,-3000.0,0.0002102,2]
[420098111,1775675446317,-3000.0,0.0002103,2]
[420098112,1775675446327,-5483.68149,0.0002104,2]
[420098113,1775675446337,-942.98311,0.0002104,2]
[420098115,1775675446346,-942.98311,0.0002104,2]
[420098117,1775675446356,-942.98311,0.0002104,2]
[420098120,1775675446366,-942.98311,0.0002104,2]
[420098121,1775675446376,-1538.2811269,0.00021125,2]
[420098123,1775675446385,-396.19443826,0.0002134,3]
[420098124,1775675446395,-2230.315306,0.00021381,2]
[420098126,1775675446405,-1000.0,0.000214,2]
[420098128,1775675446415,-1690.54,0.00021498,10]
[420098129,1775675446425,-232.27953365,0.00021499,2]
[420098131,1775675446434,-500.0,0.00021499,2]
[420098132,1775675446444,-500.0,0.00021499,2]
[420098133,1775675446454,-253.94,0.00021499,2]
[420098134,1775675446463,-500.0,0.00021499,2]
[420098135,1775675446473,-500.0,0.00021499,2]
[420098136,1775675446483,-500.0,0.00021499,2]
[420098137,1775675446493,-500.0,0.00021499,2]
[420098138,1775675446502,-500.0,0.00021499,2]
[420098139,1775675446512,-500.0,0.00021499,2]
[420098140,1775675446521,-500.0,0.00021499,2]
[420098141,1775675446531,-453.95038789,0.00021499,2]
[420098142,1775675446540,-348.45802698,0.00021499,2]
[420098143,1775675446550,-537.0,0.000215,2]
[420098144,1775675446560,-47482.80932655,0.00021508,2]
[420098145,1775675446569,-3399.39839507,0.00021549,2]
[420098146,1775675446579,-942.98311,0.00021549,2]
[420098147,1775675446589,-942.98311,0.00021549,2]
[420098148,1775675446600,-942.98311,0.00021549,2]
[420098149,1775675446610,-942.98311,0.00021549,2]
[420098150,1775675446619,-417.34099554,0.0002156,2]
[420098151,1775675446629,-250.0,0.00021589,7]
[420098152,1775675446638,-555.043227,0.0002159,2]
[420098153,1775675446647,-445.202766,0.00021595,2]
[420098154,1775675446658,-162.380719,0.00021595,2]
[420098155,1775675446667,-537.6845,0.00021595,2]
[420098157,1775675446676,-335.56,0.00021598,3]
[420098158,1775675446686,-500.0,0.00021607,2]
[420098159,1775675446695,-200.0,0.00021607,2]
[420098160,1775675446705,-200.0,0.00021607,2]
[420098161,1775675446714,-351384.58082087,0.00021608,2]
[420098162,1775675446727,-7105.0,0.00021608,2]
[420098288,1775676638571,-3495.8960503,0.00011579,10]
[420098290,1775676638583,-1504.1039497,0.00011579,10]
[420098292,1775676638592,-1200.0,0.00011695,2]
[420098294,1775676638602,-5000.0,0.00011696,10]
[420098296,1775676638612,-5000.0,0.00011814,10]
[420098298,1775676638621,-1000.0,0.00013699,2]